[Event "34th Pula Open 2022"]
[Site "Pula"]
[Date "2022.06.18"]
[Round "1.1"]
[White "Tomcikova, Dominika"]
[Black "Fercec, Nenad"]
[Result "0-1"]
[ECO "A07"]
[WhiteElo "1958"]
[BlackElo "2415"]
[Annotator "TA"]
[PlyCount "90"]
[EventDate "2022.06.18"]
[EventType "swiss"]
[EventCountry "CRO"]
[SourceTitle "playchess.com"]
[Source "ChessBase"]
[SourceQuality "1"]
[TimeControl "5400+30"]

{[%evp 14,90,0,0,0,-2,-8,-32,-20,-37,-28,-43,-23,-49,-50,-62,-55,-51,-64,-106,-114,-141,-134,-124,-107,-112,-112,-118,-109,-141,-141,-138,-135,-198,-149,-144,-135,-166,-137,-183,-137,-145,-146,-137,-137,-193,-179,-272,-208,-267,-269,-379,-203,-189,-199,-260,-258,-256,-256,-287,-254,-360,-325,-393,-371,-369,-343,-339,-339,-566,-581,-542,-518,-629,-608,-1555,-1163,-1018,-964]} 1. Nf3 {[%emt 0:00:04]} d5 {[%emt 0:00:16]} 2. d3 {[%emt 0:00:13]} Nf6 {[%emt 0:00:17]} 3. g3 {[%emt 0:00:14]} g6 {[%emt 0:00:16]} 4. Bg2 {[%emt 0:00:08]} Bg7 {[%emt 0:00:10]} 5. O-O {[%emt 0:00:10]} O-O {[%emt 0:00:10]} 6. Nbd2 {[%emt 0:00:11]} Nc6 $1 {[%emt 0:00:14][%mdl 4] is recently more successful than 6...c5.} 7. e4 {[%emt 0:00:33]} e5 {[%emt 0:00:18]} 8. Re1 {[%emt 0:01:09]} h6 {[%emt 0:00:31] A07: Réti Opening: New York and Capablanca Systems.} 9. h3 {[%emt 0:01:45]} Re8 {[%emt 0:01:48]} 10. a3 {[%emt 0:01:54]} a5 {[%emt 0:00:31] Black is slightly better.} 11. Rb1 {[%emt 0:07:24]} a4 {[%emt 0:01:53] [#]} 12. Qe2 $146 {[%emt 0:12:43]} ({Predecessor:} 12. Kh2 Be6 13. exd5 Nxd5 14. Ne4 b6 15. c4 Nde7 16. Nc3 Bf5 17. Nd5 Ra5 18. Nh4 {0-1 (55) Socko,M (2484)-Wang,J (2364) Batumi 2012}) 12... Be6 {[%emt 0:11:01]} 13. b4 {[%emt 0:15:55]} axb3 $1 {[%emt 0:01:36]} 14. cxb3 {[%emt 0:02:22]} Nd7 {[%emt 0:08:47][%cal Bf6d7,Bd7b6,Bb6a4][%mdl 32]} 15. b4 {[%emt 0:07:23] Inhibits Nc5.} Nb6 {[%emt 0:03:12]} 16. Bb2 {[%emt 0:10:25]} d4 {[%emt 0:01:47]} 17. Rbc1 {[%emt 0:08:28]} Na4 {[%emt 0:00:42]} 18. Ba1 {[%emt 0:04:07]} Na7 {[%emt 0:00:47] Black is more active.} 19. Nc4 {[%emt 0:01:04]} Bd7 {[%emt 0:00:16]} 20. Nfd2 {[%emt 0:03:24]} Nb5 {[%emt 0:00:24]} 21. Nb1 {[%emt 0:00:42]} h5 {[%emt 0:03:15][%cal Bh6h5,Bh5h4,Bh4g3][%mdl 32]} 22. f4 {[%emt 0:03:53]} h4 {[%emt 0:01:52]} 23. Nxe5 {[%emt 0:09:25]} (23. Qf2 $17) 23... Bxe5 {[%emt 0:01:44]} ({Inferior is} 23... hxg3 24. Nxd7 Qxd7 25. e5 $15) (23... Rxe5 $19 24. fxe5 hxg3) 24. fxe5 $17 {[%emt 0:00:08]} hxg3 {[%emt 0:00:10]} 25. Qf3 {[%emt 0:01:17]} Qg5 {[%emt 0:08:46]} 26. Rf1 {[%emt 0:00:32]} Re7 {[%emt 0:00:05]} ({Black should try} 26... Be6 $19 {White must now prevent ...Rec8.} 27. Qf4 Qxf4 28. Rxf4 Rec8) 27. Qf4 {[%emt 0:00:39]} Qxf4 {[%emt 0:01:33] Really sharp!} 28. Rxf4 {[%emt 0:00:07]} Rxe5 {[%emt 0:00:05]} 29. Rcf1 {[%emt 0:02:19]} (29. h4 $17 {was necessary.}) 29... Be6 {[%emt 0:00:07]} 30. R4f3 {[%emt 0:01:40]} (30. Rc1 $142) 30... Ba2 {[%emt 0:00:30]} 31. Nd2 {[%emt 0:01:29]} Nac3 {[%emt 0:02:07] Pair of Knights!} 32. Nc4 {[%emt 0:02:06]} (32. Bb2 {keeps fighting.}) 32... Re7 {[%emt 0:00:07]} (32... Ne2+ $142 33. Kh1 Bxc4 34. dxc4 Nxa3) 33. Re1 $19 {[%emt 0:01:02]} Nxa3 {[%emt 0:00:53]} 34. Bxc3 {[%emt 0:00:42]} (34. Nxa3 $142 Rxa3 35. Rxg3) 34... dxc3 {[%emt 0:00:11]} 35. Nxa3 {[%emt 0:00:26]} Rxa3 {[%emt 0:00:11]} 36. d4 {[%emt 0:03:21]} Rb3 {[%emt 0:00:36]} 37. Rc1 {[%emt 0:04:31]} (37. Rxg3 {was the only chance.} Rxb4 38. Rxc3) 37... Rxe4 {[%emt 0:00:05]} ({But not} 37... Rxb4 $2 38. Rxg3 Rxd4 39. Rgxc3 $19) 38. Rxg3 {[%emt 0:00:00]} Rxd4 {[%emt 0:06:12] [#] ...c2 is the strong threat.} 39. Rgxc3 {[%emt 0:00:00]} Rxc3 {[%emt 0:00:11]} 40. Rxc3 {[%emt 0:00:00][%mdl 4096] Endgame KRB-KRB} c6 {[%emt 0:00:25][%cal Bc7c6,Bc6b5,Bb5b4,Bb4b3][%mdl 32]} ({Don't blunder} 40... Rxb4 $2 41. Rxc7 b5 42. Bb7) 41. b5 $2 {[%emt 0:00:00]} (41. Ra3 {is a better defense.} Be6 42. Ra8+ Kg7 43. Rb8) 41... cxb5 {[%emt 0:00:10] Black is clearly winning.} 42. Bxb7 {[%emt 0:00:00]} b4 {[%emt 0:00:49]} 43. Rc2 {[%emt 0:00:00]} Be6 {[%emt 0:00:12] [#] Threatens to win with ...b3.} 44. Bg2 {[%emt 0:00:00]} b3 {[%emt 0:00:06]} 45. Rb2 {[%emt 0:00:00]} Rc4 {[%emt 0:00:21] Weighted Error Value: White=0.44/Black=0.14 (very precise)} 0-1

[Event "34th Pula Open 2022"]
[Site "Pula"]
[Date "2022.06.18"]
[Round "1.2"]
[White "Nikcevic, Nebojsa"]
[Black "Tomcik, Milan"]
[Result "1-0"]
[ECO "E94"]
[WhiteElo "2387"]
[BlackElo "1944"]
[Annotator "TA"]
[PlyCount "99"]
[EventDate "2022.06.18"]
[EventType "swiss"]
[EventCountry "CRO"]
[SourceTitle "playchess.com"]
[Source "ChessBase"]
[SourceQuality "1"]
[TimeControl "5400+30"]

{[%evp 15,99,26,60,67,64,69,49,51,79,74,151,129,148,139,115,135,149,147,264,256,251,242,256,243,372,371,384,307,422,414,391,394,365,109,466,180,134,0,42,46,117,118,195,214,184,174,225,217,304,276,298,297,338,326,302,287,305,249,281,283,402,397,532,497,827,818,908,908,1216,1151,1090,876,854,760,952,895,1116,731,731,731,731,731,723,662,1274,1235]} 1. Nf3 {[%emt 0:00:35]} Nf6 {[%emt 0:00:09]} 2. c4 {[%emt 0:00:14]} g6 {[%emt 0:00:20]} 3. Nc3 {[%emt 0:00:08]} Bg7 {[%emt 0:00:15]} 4. e4 {[%emt 0:00:08]} d6 {[%emt 0:00:27]} 5. d4 {[%emt 0:00:08]} O-O {[%emt 0:00:24]} 6. Be2 {[%emt 0:00:25]} e5 {[%emt 0:01:33]} 7. O-O {[%emt 0:01:02]} Na6 {[%emt 0:00:49]} 8. Be3 {[%emt 0:02:30]} Qe7 {[%emt 0:02:21][%cal Of6e4] 8...c6 is the modern continuation.} 9. d5 {[%emt 0:07:48] E94: King's Indian: Classical: 6 Be2 e5 7 0-0: Various Black 7th moves.} Nc5 {[%emt 0:12:58]} 10. Nd2 {[%emt 0:00:42]} a5 {[%emt 0:01:17]} 11. a3 {[%emt 0:01:15] White is slightly better.} Ne8 {[%emt 0:07:06]} 12. b4 {[%emt 0:02:00] [#]} axb4 $146 {[%emt 0:00:07]} (12... Nd7 $142) ({Predecessor:} 12... Nd7 13. Rc1 f5 14. f3 f4 15. Bf2 g5 16. Nb5 b6 17. Qc2 h5 18. Nb3 a4 {0-1 (60) Einoullaeva,R-Dyrda,V Litohoto 1999}) 13. axb4 $16 {[%emt 0:00:06][%mdl 64] [#] Discovered Attack} Rxa1 {[%emt 0:00:28]} 14. Qxa1 {[%emt 0:00:08]} Na6 {[%emt 0:02:19]} 15. Qa3 {[%emt 0:00:13] White is more active.} f5 {[%emt 0:05:47]} 16. f3 {[%emt 0:06:56]} f4 {[%emt 0:01:02]} (16... Bf6 $16) 17. Bf2 $18 {[%emt 0:00:10]} Nf6 {[%emt 0:09:30]} 18. c5 {[%emt 0:01:01]} dxc5 {[%emt 0:14:33]} 19. bxc5 {[%emt 0:00:46][%cal Bb4c5,Bc5c6][%mdl 32]} Nh5 {[%emt 0:01:04]} (19... Rd8 $142 20. Nc4 Bf8) 20. Ra1 {[%emt 0:01:07]} Qg5 {[%emt 0:03:37]} 21. h4 {[%emt 0:18:49]} (21. Bxa6 bxa6 22. Kf1 Qe7 $18) 21... Qd8 {[%emt 0:05:43]} 22. c6 {[%emt 0:20:57] cxb7 is the strong threat.} Ng3 {[%emt 0:09:21]} 23. Bxg3 {[%emt 0:00:21]} (23. Bxa6 bxa6 24. Nf1 Qxh4 25. Bxg3 fxg3 $16) 23... fxg3 {[%emt 0:00:04]} 24. Nf1 $2 {[%emt 0:03:32]} (24. Bxa6 bxa6 25. Nf1 (25. Qa5 Qxh4 26. Nf1 g5 $11) 25... Bf6 $16) (24. cxb7 $18 Qxh4 25. Nf1 (25. Qxf8+ $2 Bxf8 26. Bxa6 Bxb7 $19) 25... Bxb7 26. Bxa6 Bxa6 27. Qxa6) 24... Qxh4 $2 {[%emt 0:02:13][%mdl 8192]} (24... Rf7 $16 {is tougher.}) 25. Bxa6 $2 {[%emt 0:00:15]} (25. cxb7 Bxb7 26. Bxa6 Bxa6 27. Qxa6) 25... bxa6 {[%emt 0:00:40] [#]} 26. Ne2 {[%emt 0:00:06]} (26. d6 $1 $16 {[%cal Rd6d7] Hoping for d7.} cxd6 27. Nd5) 26... Bh6 {[%emt 0:01:53]} 27. Nexg3 {[%emt 0:02:47]} Bf4 {[%emt 0:01:55] Black is on the road to losing.} ({Black should try} 27... Bg5 $14) 28. Ne2 $36 {[%emt 0:00:24][%mdl 2048] White is really pushing.} Qf6 {[%emt 0:01:27]} (28... Bh6 $16 {is a better defense.} 29. Rb1 Re8) 29. Nxf4 $18 {[%emt 0:07:41]} exf4 {[%emt 0:01:13]} 30. Rd1 {[%emt 0:00:09] Against Qd4+} Rd8 {[%emt 0:02:26]} (30... Re8 $142 31. Qc5 (31. d6 cxd6 32. Rxd6 Qe7 $18) 31... Qg5) 31. Qa1 {[%emt 0:00:58]} Qxa1 {[%emt 0:02:11]} (31... Qf7 {keeps fighting.} 32. Qd4 g5) 32. Rxa1 {[%emt 0:00:05][%mdl 4096] Endgame KRB-KRN} Kf7 {[%emt 0:00:17]} 33. Nd2 {[%emt 0:00:17]} h5 {[%emt 0:00:38]} 34. Nc4 {[%emt 0:00:39]} g5 {[%emt 0:01:14]} 35. Kf2 {[%emt 0:00:27]} h4 {[%emt 0:00:23]} 36. Ke2 {[%emt 0:00:56]} Ke7 {[%emt 0:01:31]} 37. Kd3 {[%emt 0:00:39]} Rh8 {[%emt 0:00:23]} (37... g4 {might work better.} 38. fxg4 Rg8) 38. Ne5 {[%emt 0:05:22] Strongly threatening Ng6+.} Rh6 {[%emt 0:01:23] Prevents Ng6+.} 39. Kd4 {[%emt 0:01:32] White is clearly winning.} h3 {[%emt 0:00:51]} (39... Rd6 $142 40. Rb1 Rd8) 40. gxh3 {[%emt 0:00:09]} Rxh3 {[%emt 0:00:25]} 41. Rb1 {[%emt 0:02:30][%cal Ob1b7] Black must now prevent Rb7!} Rh7 {[%emt 0:03:19]} 42. Rb8 {[%emt 0:00:57]} Bh3 {[%emt 0:01:38]} 43. Rg8 {[%emt 0:00:11]} a5 {[%emt 0:01:00]} 44. Rxg5 {[%emt 0:00:15]} a4 {[%emt 0:00:18]} 45. Rg8 {[%emt 0:00:48]} Bf1 {[%emt 0:00:34]} 46. Ra8 {[%emt 0:00:27]} Rh2 {[%emt 0:00:32]} 47. Ng6+ {[%emt 0:01:01]} Kf6 {[%emt 0:00:28]} 48. Nxf4 {[%emt 0:00:16]} Rd2+ {[%emt 0:00:13]} 49. Ke3 {[%emt 0:00:19]} Ra2 {[%emt 0:00:13]} 50. d6 {[%emt 0:00:36] Weighted Error Value: White=0.36/Black=0.61} 1-0

[Event "34th Pula Open 2022"]
[Site "Pula"]
[Date "2022.06.18"]
[Round "1.3"]
[White "Siljan, Milorad"]
[Black "Popovic, Milan S"]
[Result "0-1"]
[ECO "B92"]
[WhiteElo "1939"]
[BlackElo "2383"]
[Annotator "TA"]
[PlyCount "82"]
[EventDate "2022.06.18"]
[EventType "swiss"]
[EventCountry "CRO"]
[SourceTitle "playchess.com"]
[Source "ChessBase"]
[SourceQuality "1"]
[TimeControl "5400+30"]

{[%evp 19,82,9,5,-21,-17,-9,-8,-52,-21,-14,-13,-35,-23,-31,-29,-25,-25,-50,16,-34,-28,-47,-25,-85,-47,-87,-86,-104,-109,-117,-124,-129,-135,-159,-128,-167,-164,-146,-149,-154,-157,-244,-239,-224,-204,-306,-314,-304,-303,-260,-231,-270,-250,-254,-229,-249,-240,-278,-170,-328,-314,-395,-296,-383,-374]} 1. e4 {[%emt 0:00:18]} c5 {[%emt 0:00:06]} 2. Nf3 {[%emt 0:00:12]} d6 {[%emt 0:00:04]} 3. d4 {[%emt 0:00:10]} cxd4 {[%emt 0:00:03]} 4. Nxd4 {[%emt 0:00:08]} Nf6 {[%emt 0:00:18]} 5. Nc3 {[%emt 0:00:58]} a6 {[%emt 0:00:15]} 6. Be2 {[%emt 0:02:57]} e5 {[%emt 0:00:05]} 7. Nb3 {[%emt 0:01:47]} Be7 {[%emt 0:00:03]} 8. Be3 {[%emt 0:02:02]} Be6 {[%emt 0:00:04]} 9. O-O {[%emt 0:03:49]} O-O {[%emt 0:01:22]} 10. Bf3 {[%emt 0:04:34] 10.Re1 is the recent fashion.} Nbd7 {[%emt 0:01:23]} 11. Qe2 {[%emt 0:05:06] B92: Sicilian Najdorf: 6 Be2.} Qc7 {[%emt 0:06:54]} 12. Rfd1 {[%emt 0:03:49]} b5 {[%emt 0:07:12]} 13. Nd5 {[%emt 0:14:23] The position is equal.} Bxd5 {[%emt 0:15:05]} 14. exd5 {[%emt 0:00:11] [#]} Nb6 $146 {[%emt 0:01:12]} ({Predecessor:} 14... Rac8 15. c3 Nb6 16. Bxb6 Qxb6 17. Rac1 Rc7 18. c4 bxc4 19. Rxc4 Rfc8 20. Rdc1 Rxc4 21. Rxc4 Rxc4 22. Qxc4 {½-½ (37) Poglajen,F (1760)-Borstnik,A (1790) Ljubljana 2021}) 15. Bxb6 {[%emt 0:06:04]} Qxb6 {[%emt 0:01:01]} 16. a4 {[%emt 0:04:18]} b4 {[%emt 0:09:18]} 17. a5 {[%emt 0:04:04]} Qb7 {[%emt 0:02:54]} 18. h4 {[%emt 0:01:05]} Ne8 {[%emt 0:11:51] [#]} (18... Rfc8 $15) 19. g3 {[%emt 0:04:39]} (19. Nc5 $1 $11 Qa7 (19... Qc8 20. Nd3) 20. Nd3) 19... f5 $15 {[%emt 0:01:32]} 20. Bg2 {[%emt 0:01:21]} Nf6 {[%emt 0:02:05][%cal Be8f6,Bf6d7,Bd7c5][%mdl 32]} 21. Qd3 {[%emt 0:03:37]} (21. Ra4 $11 {remains equal.}) 21... Nd7 {[%emt 0:03:01]} 22. Qe2 {[%emt 0:03:03] [#]} Bf6 $1 {[%emt 0:01:14] White is now going downhill.} 23. Nd2 {[%emt 0:03:00]} e4 {[%emt 0:07:32][%cal Be5e4,Be4f3][%mdl 32]} 24. Nc4 {[%emt 0:00:07]} Qc7 {[%emt 0:00:29]} 25. Ra4 {[%emt 0:04:28]} Rab8 {[%emt 0:00:38]} 26. Bf1 {[%emt 0:04:22]} Nc5 {[%emt 0:01:00]} 27. Ra2 {[%emt 0:00:22]} Qe7 {[%emt 0:10:23][%cal Of5f4]} 28. f4 {[%emt 0:04:44]} exf3 {[%emt 0:04:24]} 29. Qxe7 {[%emt 0:01:14]} Bxe7 {[%emt 0:00:01]} 30. Kf2 {[%emt 0:00:33]} (30. Nd2 $17) 30... b3 $19 {[%emt 0:00:43]} 31. cxb3 {[%emt 0:00:31]} Rxb3 {[%emt 0:00:17] And now ...Ne4+ would win.} 32. Ra3 {[%emt 0:00:52]} (32. Nd2 $142 Ne4+ 33. Kg1) 32... Ne4+ {[%emt 0:00:38]} 33. Kg1 {[%emt 0:00:29] [#]} Rxa3 {[%emt 0:00:32]} ({Stronger than} 33... f2+ 34. Kg2 Rb4 35. Rf3 $17) 34. Nxa3 {[%emt 0:00:38]} Nxg3 {[%emt 0:00:20]} 35. Bxa6 {[%emt 0:00:12]} Ra8 {[%emt 0:00:27]} 36. Bd3 {[%emt 0:01:56]} Rxa5 {[%emt 0:00:11]} ({Don't go for} 36... Bxh4 $2 37. Nc4 $19) 37. Kf2 {[%emt 0:00:11]} Bxh4 {[%emt 0:04:10]} 38. Kxf3 {[%emt 0:00:02]} Kf8 {[%emt 0:01:48] Hoping for ...g5.} 39. Bb5 $2 {[%emt 0:01:00]} (39. Nc4 Rxd5 40. Ne3) 39... Ne4 {[%emt 0:01:01]} 40. Rd3 {[%emt 0:01:49]} Be1 {[%emt 0:01:30]} 41. Bd7 {[%emt 0:01:55]} Nc5 {[%emt 0:01:07][%csl LRd3,LRd7] Weighted Error Value: White=0.35/Black=0.15 (very precise)} 0-1

[Event "34th Pula Open 2022"]
[Site "Pula"]
[Date "2022.06.18"]
[Round "1.4"]
[White "Lindgren, Philip"]
[Black "Svaljek, Radmila"]
[Result "1-0"]
[ECO "E09"]
[WhiteElo "2369"]
[BlackElo "1934"]
[Annotator "TA"]
[PlyCount "77"]
[EventDate "2022.06.18"]
[EventType "swiss"]
[EventCountry "CRO"]
[SourceTitle "playchess.com"]
[Source "ChessBase"]
[SourceQuality "1"]
[TimeControl "5400+30"]

{[%evp 25,77,30,35,31,33,31,34,36,32,24,31,14,57,64,75,74,133,134,167,74,166,42,80,98,102,89,98,52,202,204,193,184,202,200,257,237,422,443,446,475,433,381,529,525,522,518,517,515,726,719,752,709,3744,2067]} 1. d4 {[%emt 0:01:20]} d5 {[%emt 0:00:15]} 2. c4 {[%emt 0:00:28]} e6 {[%emt 0:00:23]} 3. Nf3 {[%emt 0:00:15]} Nf6 {[%emt 0:00:52]} 4. g3 {[%emt 0:00:14]} c6 {[%emt 0:01:11]} 5. Nbd2 {[%emt 0:01:37]} Be7 {[%emt 0:02:29]} 6. Bg2 {[%emt 0:00:25]} O-O {[%emt 0:00:23]} 7. O-O {[%emt 0:00:39]} b6 {[%emt 0:01:03]} 8. Qc2 {[%emt 0:00:39]} Bb7 {[%emt 0:05:10]} 9. e4 {[%emt 0:01:22]} dxe4 {[%emt 0:07:11]} 10. Nxe4 {[%emt 0:00:47]} Nxe4 {[%emt 0:00:03]} 11. Qxe4 {[%emt 0:00:10]} Nd7 {[%emt 0:00:09]} 12. Rd1 {[%emt 0:01:16]} Nf6 {[%emt 0:08:48]} 13. Qc2 {[%emt 0:01:00]} Qc8 {[%emt 0:03:19]} 14. c5 {[%emt 0:02:54] E09: Closed Catalan: Main Line: 7 Qc2 c6 8 Nbd2.} Rd8 {[%emt 0:04:10]} 15. Be3 {[%emt 0:05:17]} h6 {[%emt 0:02:53]} 16. Rac1 {[%emt 0:01:17] White is slightly better.} (16. Ne5 {is interesting.} Nd5 17. Bd2 Qc7 18. Re1) 16... Nd5 {[%emt 0:03:34]} 17. Bd2 {[%emt 0:00:28] [#]} bxc5 $146 {[%emt 0:03:07]} (17... Qc7 {seems wilder.} 18. b4 Ba6 19. Ne5 bxc5 20. bxc5 Rab8) ({Predecessor:} 17... Bf6 18. a3 Qc7 19. Qe4 Qe7 20. Bf1 Qf8 21. Bd3 g6 22. h4 Bg7 23. Qe2 Rd7 {½-½ (55) Oganian,M (2435)-Tishin,P (2426) Tula 2018}) 18. dxc5 {[%emt 0:00:10]} (18. Ba5 $5 {[%cal Ra5d8]}) 18... Bf6 {[%emt 0:00:07]} (18... a5 {with more complications.} 19. Ne5 Qc7 20. Bf4 Nxf4 21. gxf4 Bf6) 19. Ba5 {[%emt 0:06:38]} Re8 {[%emt 0:00:15]} 20. Nd2 {[%emt 0:00:48]} Ba6 {[%emt 0:00:35]} (20... Qd7 $142) 21. Ne4 $16 {[%emt 0:02:03]} Rf8 {[%emt 0:10:06]} 22. b3 {[%emt 0:04:21]} (22. Nxf6+ $18 {has better winning chances.} Nxf6 23. Rd6) 22... Qb7 {[%emt 0:03:01]} (22... Be7 $16) 23. Bd2 {[%emt 0:12:40]} (23. Nxf6+ $18 Nxf6 24. Rd6) 23... Be2 {[%emt 0:04:36]} 24. Re1 {[%emt 0:01:58]} Bh5 {[%emt 0:00:17]} 25. Nxf6+ {[%emt 0:09:31]} Nxf6 {[%emt 0:00:05]} 26. Bc3 {[%emt 0:01:30] White is more active. This bishop pair is nice.} ({Better is} 26. Qb2 $16) 26... Bg6 {[%emt 0:01:57] Loses the game.} (26... Nd5 $1 $14) 27. Qb2 $18 {[%emt 0:03:05]} Ne8 {[%emt 0:03:01]} 28. Rcd1 $36 {[%emt 0:02:09][%cal Bc1d1,Bd1d2,Bd2d4][%mdl 2080] White has strong initiative.} Rc8 {[%emt 0:00:56]} 29. Rd2 {[%emt 0:00:42]} Qb5 {[%emt 0:01:26]} 30. b4 {[%emt 0:00:34][%cal Oa2a4,Bb3b4,Bb4b5,Bb5c6,Bc6c7][%mdl 32] Hoping for a4!} Bf5 $2 {[%emt 0:02:17] [#]} (30... Qb7 {was necessary.} 31. a3 Bh5) 31. a4 {[%emt 0:01:49]} Qa6 {[%emt 0:03:58]} 32. b5 {[%emt 0:07:28]} Qxa4 {[%emt 0:03:21]} 33. Bxc6 {[%emt 0:00:52]} Rxc6 {[%emt 0:01:34]} 34. Rd4 {[%emt 0:01:02] White is clearly winning.} ({Weaker is} 34. bxc6 Qxc6 35. Qb4 h5 $18) 34... Qc2 {[%emt 0:00:29]} 35. Qxc2 {[%emt 0:01:00]} Bxc2 {[%emt 0:00:01]} 36. bxc6 {[%emt 0:00:08]} Nf6 {[%emt 0:02:10]} 37. Rd2 {[%emt 0:00:52] [#] And now Bxf6 would win.} Ba4 {[%emt 0:00:12]} 38. Bxf6 {[%emt 0:00:11][%cal Oc6c7] Strongly threatening c7!} gxf6 {[%emt 0:00:03]} 39. c7 {[%emt 0:00:07] Weighted Error Value: White=0.19 (very precise) /Black=0.45} 1-0

[Event "34th Pula Open 2022"]
[Site "Pula"]
[Date "2022.06.18"]
[Round "1.5"]
[White "Khandhar, Kaushal"]
[Black "Zufic, Miroslav"]
[Result "1-0"]
[ECO "B08"]
[WhiteElo "1936"]
[BlackElo "2384"]
[Annotator "TA"]
[PlyCount "103"]
[EventDate "2022.06.18"]
[EventType "swiss"]
[EventCountry "CRO"]
[SourceTitle "playchess.com"]
[Source "ChessBase"]
[SourceQuality "1"]
[TimeControl "5400+30"]

{[%evp 12,103,60,16,19,40,33,5,37,25,-8,-20,-22,-23,16,18,34,11,28,20,17,-510,286,291,280,284,287,295,297,285,293,285,325,187,298,291,260,285,267,283,393,377,417,415,410,389,442,431,512,463,591,591,576,544,671,650,625,584,787,752,797,794,852,831,862,802,833,837,818,776,1173,1139,1135,1034,1505,1520,1517,1510,1506,1499,1466,1277,1010,0,1428,1409,1402,1418,1385,1360,1496,1495,1217,1145]} 1. d4 {[%emt 0:00:56]} Nf6 {[%emt 0:00:30]} 2. Nc3 {[%emt 0:00:19]} d6 {[%emt 0:01:05]} 3. Bf4 {[%emt 0:00:33]} g6 {[%emt 0:00:56]} 4. e4 {[%emt 0:00:47][%cal Be2e4,Be4e5][%mdl 32]} Bg7 {[%emt 0:00:13]} 5. Qd2 {[%emt 0:00:17]} O-O {[%emt 0:02:02]} 6. O-O-O {[%emt 0:00:09]} Nc6 {[%emt 0:05:00]} 7. Nf3 {[%emt 0:00:41]} Bg4 {[%emt 0:00:31] B08: Pirc Defence: Classical System.} 8. Qe3 {[%emt 0:00:18]} Qe8 {[%emt 0:08:30][%cal Oc6d4] [#]} 9. e5 $146 {[%emt 0:05:19]} ({Predecessor:} 9. Bh6 Bxf3 10. gxf3 e5 11. dxe5 Nxe5 12. h4 Nh5 13. Be2 Qe6 14. Bxg7 Kxg7 15. f4 {0-1 (53) Petersson,K (2041)-Todorovic,B (2222) Chess.com INT 2022}) 9... Nd7 {[%emt 0:01:45] The position is equal.} 10. Nd5 {[%emt 0:11:27]} Rc8 {[%emt 0:03:30]} 11. Bb5 {[%emt 0:01:57]} e6 {[%emt 0:00:30] Hoping for ...dxe5.} 12. Nc3 {[%emt 0:00:30]} dxe5 {[%emt 0:17:07]} (12... Bxf3 $5 13. gxf3 Ne7 $15) 13. dxe5 {[%emt 0:05:25]} Nb6 {[%emt 0:08:43]} 14. Bg5 {[%emt 0:17:55] aiming for Ne4.} Bxf3 {[%emt 0:05:15]} 15. gxf3 {[%emt 0:00:48] Black must now prevent Ne4.} a6 {[%emt 0:01:15]} 16. Ne4 $2 {[%emt 0:06:06][%mdl 8192]} h6 $4 {[%emt 0:22:51][%mdl 8192]} (16... axb5 $19 {avoids the disaster.} 17. Nf6+ Bxf6 18. Bxf6 Ne7) 17. Nf6+ $18 {[%emt 0:19:22]} Bxf6 {[%emt 0:00:05]} 18. Bxf6 {[%emt 0:00:01][%cal Oe3h6]} Kh7 {[%emt 0:00:08] [#]} 19. Rd4 $1 {[%emt 0:00:16]} Nxd4 {[%emt 0:00:39]} (19... axb5 $2 {[#] leads to mate.} 20. Qxh6+ $3 {[%mdl 512]} Kxh6 21. Rh4#) 20. Bxe8 {[%emt 0:00:32] A strong pair of Bishops.} Nf5 {[%emt 0:00:06] [#]} 21. Qe4 {[%emt 0:02:16]} Rfxe8 {[%emt 0:00:08]} (21... Rcxe8 22. Qxb7) 22. Rd1 {[%emt 0:04:07]} (22. Qxb7 $142 {And now Rg1 would win.} Nd5 23. Qxa6) 22... Nd5 {[%emt 0:02:55]} (22... Rb8 {is a better defense.} 23. c4 a5) 23. Rxd5 {[%emt 0:11:05]} exd5 {[%emt 0:00:07]} 24. Qxd5 {[%emt 0:00:03]} Kg8 {[%emt 0:01:19]} 25. Qxb7 {[%emt 0:00:25]} Nd4 {[%emt 0:08:49]} 26. Qxa6 {[%emt 0:02:59]} Ra8 {[%emt 0:01:45]} 27. Qc4 {[%emt 0:01:25][%csl LRc7,LRd4]} c5 {[%emt 0:03:05]} 28. c3 {[%emt 0:01:20]} Nf5 {[%emt 0:00:14]} 29. a4 {[%emt 0:00:59]} Rac8 {[%emt 0:00:09]} 30. b3 {[%emt 0:01:08]} Kf8 {[%emt 0:00:03]} 31. Kb2 {[%emt 0:01:07]} Kg8 {[%emt 0:00:02]} 32. Qd5 {[%emt 0:01:42]} Kf8 {[%emt 0:02:09]} 33. f4 {[%emt 0:00:42]} Kg8 {[%emt 0:00:03]} 34. h4 {[%emt 0:01:17][%cal Oh4h5] h5! is the strong threat.} h5 {[%emt 0:00:04]} 35. Qd7 {[%emt 0:01:40]} Rb8 {[%emt 0:02:42]} 36. Ka3 {[%emt 0:00:31]} Rbc8 {[%emt 0:00:22]} 37. a5 {[%emt 0:00:34]} Ra8 {[%emt 0:00:30]} 38. Ka4 {[%emt 0:00:17]} Ng7 {[%emt 0:00:49]} 39. Bxg7 {[%emt 0:01:04]} Kxg7 {[%emt 0:00:01][%mdl 4096] Endgame KQ-KRR} 40. Qd6 {[%emt 0:00:19]} c4 {[%emt 0:01:02]} 41. b4 {[%emt 0:01:01]} Rad8 {[%emt 0:00:01]} 42. Qc6 {[%emt 0:00:39]} Rc8 {[%emt 0:00:43]} 43. Qf6+ {[%emt 0:00:23]} Kg8 {[%emt 0:00:06]} 44. f5 {[%emt 0:00:13]} gxf5 {[%emt 0:00:04]} 45. Qg5+ {[%emt 0:00:28]} Kf8 {[%emt 0:00:02]} 46. Qh6+ {[%emt 0:00:04]} Kg8 {[%emt 0:00:05]} 47. Qg5+ {[%emt 0:00:02]} Kf8 {[%emt 0:00:05]} 48. Qxf5 {[%emt 0:00:10] White is clearly winning.} Rcd8 {[%emt 0:00:40]} 49. b5 {[%emt 0:00:44]} Rd2 {[%emt 0:00:53]} 50. a6 {[%emt 0:00:53]} Re6 {[%emt 0:00:33]} 51. Kb4 {[%emt 0:00:36]} Ra2 {[%emt 0:00:32]} 52. Kxc4 {[%emt 0:00:56] Weighted Error Value: White=0.39/Black=0.50} 1-0